Cogmind - Beta 17.1 @@@ ROGUE MODE // 2026.09.10 @ 21:02:20 Player: poison Result: Self-destructed Performance ------------- Evolutions (1) 500 Regions Visited (2) 400 Robots Destroyed (32) 160 Value Destroyed (471) 471 Prototype IDs (1) 20 Alien Tech Used (0) 0 Bonus (0) 0 TOTAL SCORE: 1551 Bonus ------- None Cogmind --------- Core Integrity 267/400 Matter 150/300 Energy 125/125 System Corruption 0% Temperature Cool (0) Movement Core (150) Ox2 Location -9/Materials Parts ------- > --- POWER (1) -------- Light Ion Engine > --- PROPULSION (3) --- (None) > --- UTILITY (3) ------ Small Storage Unit Advanced Visual Processing Unit > --- WEAPON (2) ------- (None) > --- INVENTORY (8) ---- Medium Matter Pod (100) Structural Scanner Advanced Visual Processing Unit Signal Interpreter Improved Terrain Scanner Field Laser Light Assault Rifle Peak State ------------ > --- POWER ------------ Light Ion Engine > --- PROPULSION ------- Flight Unit Flight Unit Flight Unit > --- UTILITY ---------- Small Storage Unit Advanced Visual Processing Unit Shield Generator > --- WEAPON ----------- Field Laser Light Assault Rifle > --- INVENTORY -------- Wheel Medium Matter Pod Structural Scanner Advanced Visual Processing Unit Signal Interpreter Improved Terrain Scanner [Rating: 15] Favorites ----------- Power Ion Engine Engine Ion Engine Propulsion Aluminum Leg Leg Aluminum Leg Wheel Wheel Flight Unit Flight Unit Utility Small Storage Unit Device Seismic Detector Storage Small Storage Unit Processor Advanced Visual Processing Unit Weapon Medium Laser Energy Gun Medium Laser Ballistic Gun Light Assault Rifle Launcher Grenade Launcher Build | -11 -10 -9 ------- Run | Yrd Mat Mat Slots Evolved 2 | . . 2 Power . | . . . Propulsion 1 | . . 1 Utility 1 | . . 1 Weapon . | . . . Parts Attached 22 | 8 5 9 Power 3 | 1 1 1 Engine 3 | 1 1 1 Core . | . . . Reactor . | . . . Propulsion 7 | 2 2 3 Treads . | . . . Leg 2 | 2 . . Wheel 1 | . . 1 Hover . | . . . Flight 4 | . 2 2 Utility 5 | 3 . 2 Device 3 | 2 . 1 Storage 1 | 1 . . Processor 1 | . . 1 Hackware . | . . . Protection . | . . . Artifact . | . . . Weapon 7 | 2 2 3 Energy Gun 5 | 2 1 2 Energy Cannon . | . . . Ballistic Gun 1 | . . 1 Ballistic Cannon . | . . . Launcher 1 | . 1 . Special Weapon . | . . . Impact Weapon . | . . . Slashing Weapon . | . . . Piercing Weapon . | . . . Special Melee Weapon . | . . . Unidentified Prototypes 1 | . . 1 Parts Lost 9 | . . 9 Power . | . . . Propulsion 6 | . . 6 Utility 2 | . . 2 Weapon 1 | . . 1 Highest Loss Streak 5 | . . 5 To Critical Strikes . | . . . Average Backups 5 | 1 6 6 Power . | . . . Propulsion 1 | . 1 1 Utility 3 | . 3 4 Weapon . | . . . Tool/Special . | . . . Unused Backups 4 | . . 4 Power . | . . . Propulsion . | . . . Utility 4 | . . 4 Weapon . | . . . Tool/Special . | . . . Average Slot Usage (%) 93 | . 99 77 Engine 12 | . 14 9 Leg 20 | . 26 4 Flight 5 | . . 21 Device 12 | . 15 5 Storage 12 | . 12 11 Processor 1 | . . 6 Energy Gun 14 | . 16 9 Ballistic Gun 1 | . . 5 Launcher 9 | . 11 3 Peak Build Rating 15 | 9 9 15 Average Rating 7 | 7 7 10 On Entrance 5 | . 9 8 Avg Prop Armor Cover (%) 6 | . . 6 Naked Turns . | . . . Heaviest Build 16 | 15 16 15 Greatest Support 20 | 20 20 20 Greatest Overweight (x) 5 | 3 5 2 Average Overweight (x) . | . . . Largest Inventory Capacity 8 | 8 8 8 Average Capacity 7 | 6 7 8 Most Carried 8 | 3 8 8 Average Carried 5 | 1 6 6 Final Capacity 8 | 5 8 8 Final Carried 8 | 3 8 7 Class Distribution -------------------- 100% | Mutant Dominant Class ---------------- Mutant | -10/Materials Mutant | -9/Materials Resources | -11 -10 -9 ----------- Run | Yrd Mat Mat Matter Collected 553 | 330 146 77 Remotely . | . . . Salvage Created 510 | 215 269 26 Parts 54 | 15 27 12 Haulers Intercepted 1 | . 1 . Recyclers Shooed 2 | . 2 . Parts Field Recycled . | . . . Retrieved Matter . | . . . Parts Self-Destructed . | . . . Prevented . | . . . Parts Restored . | . . . Kills | -11 -10 -9 ------- Run | Yrd Mat Mat Combat Hostiles Destroyed 15 | . 9 6 Guns 2 | . . 2 AOE 13 | . 9 4 Classes Destroyed 9 | 3 6 . Worker 3 | 2 1 . Builder 3 | . 3 . Tunneler 5 | 4 1 . Hauler 1 | . 1 . Recycler 2 | 1 1 . Operator 2 | . 1 1 Watcher 1 | . 1 . Swarmer 11 | . 5 6 Grunt 4 | . 4 . Best Kill Streak 11 | 3 11 4 Combat Bots Only 3 | . 3 3 Max Kills in Single Turn 6 | 1 6 2 Gunslinging . | . . . Exploded 2 | . 2 1 Melee . | . . . Uniques/NPCs Destroyed . | . . . Combat | -11 -10 -9 -------- Run | Yrd Mat Mat Hostile Shots Fired 98 | . 41 57 Missed 44 | . 23 21 Hits 54 | . 18 36 Projectile 54 | . 18 36 Damage Taken 773 | . 232 541 Core 178 | . 45 133 Absorbed by Shields 37 | . . 37 Core Remaining (%) 91 | 100 82 . Volleys Fired 43 | 16 18 9 Largest 2 | 2 2 2 Hottest 100 | 100 100 83 Shots Fired 82 | 32 32 18 Gun 65 | 32 19 14 Cannon . | . . . Launcher 17 | . 13 4 Special . | . . . Kinetic 7 | . . 7 Thermal 58 | 32 19 7 Explosive 17 | . 13 4 Electromagnetic . | . . . Robot Hit Streak 6 | 6 5 1 Robot Miss Streak 3 | 2 3 2 Penetration Max . | . . . Secondary Targets . | . . . Shots Hit Robots 40 | 21 15 4 Core Hits 40 | 8 23 9 Critical Kills . | . . . Critical Parts Destroyed . | . . . Critical Strikes 3 | 2 1 . Burn 3 | 2 1 . Melee Attacks . | . . . Impact . | . . . Slashing . | . . . Piercing . | . . . Sneak Attacks . | . . . Combat Hostiles . | . . . Follow-up Attacks . | . . . Damage Inflicted 1972 | 271 1266 435 Guns 451 | 271 126 54 Cannons . | . . . Explosions 1519 | . 1138 381 Melee . | . . . Ramming 2 | . 2 . Kinetic 10 | . . 10 Thermal 914 | 271 599 44 Explosive 1046 | . 665 381 Electromagnetic . | . . . Impact . | . . . Slashing . | . . . Piercing . | . . . Highest Corruption . | . . . Average Corruption . | . . . Corruption Purged . | . . . Corruption Blocked . | . . . Overload Shots . | . . . Overflow Damage 286 | . 182 104 Projectiles . | . . . Explosions 286 | . 182 104 Melee . | . . . Knockbacks . | . . . Impact . | . . . Kinetic . | . . . Secondary . | . . . Self-Inflicted Damage 184 | . 63 121 Shots 4 | . 2 2 Rammed . | . . . Targets Rammed 2 | . 2 . Kicked 2 | . 2 . Crushed . | . . . Highest Temperature 241 | 241 78 76 Average Temperature 61 | 97 29 28 Received Heat Transfer 160 | . 30 130 Effects 2 | 2 . . Interference 2 | 2 . . Siege Activations . | . . . Martial Activations . | . . . Shielding Activations . | . . . Robots Disrupted . | . . . Combat Hostiles . | . . . Robots Corrupted . | . . . Combat Hostiles . | . . . Parts Fried . | . . . Impact Corruptions . | . . . Robots Melted . | . . . Combat Hostiles . | . . . Parts Melted 4 | 4 . . Heat Transferred 1855 | 962 794 99 Parts Sabotaged . | . . . Parts Stolen . | . . . Parts Stripped . | . . . Power Chain Reactions . | . . . Alert | -11 -10 -9 ------- Run | Yrd Mat Mat Maximum Alert Level 1 | . 1 1 Low Security (%) 57 | 100 41 53 Level 1 42 | . 58 46 Level 2 . | . . . Level 3 . | . . . Level 4 . | . . . Level 5 . | . . . High Security . | . . . Max Security . | . . . Peak Influence 303 | 10 303 295 Initial 90 | . . 90 Average 145 | 1 186 197 Influence Increases 801 | 35 421 345 Destroy 0b10 Robot/C 300 | . 180 120 Destroy 0b10 Robot/NC 85 | 35 45 5 Destroy Leader 64 | . 44 20 Successful Hack 5 | . . 5 Disable Machine 165 | . 90 75 Destroy Structure 92 | . 62 30 Lose Combat Pursuer 90 | . . 90 Influence Decreases 546 | 35 206 305 Entered New Map 125 | . . 125 Time Decay 331 | 35 206 90 Lost Part 90 | . . 90 Squads Dispatched 3 | . 2 1 Investigation 1 | . 1 . Extermination . | . . . Reinforcement 2 | . 1 1 Assault . | . . . Garrison . | . . . Intercept . | . . . Searches Triggered . | . . . Construction Impeded . | . . . Haulers Reinforced . | . . . Active Scanning Responses . | . . . Cargo Convoy Interrupts . | . . . Stealth | -11 -10 -9 --------- Run | Yrd Mat Mat Distress Signals 2 | . 1 1 Communications Jammed . | . . . Distress Signals . | . . . Times Spotted 29 | . 13 16 Peak Tracking Total 6 | . 5 6 Tactical Retreats 2 | . . 2 Traps | -11 -10 -9 ------- Run | Yrd Mat Mat Traps Triggered 2 | . 1 1 Indirectly . | . . . Trap Hack Attempts . | . . . Triggered . | . . . Disarmed . | . . . Reprogrammed . | . . . Reused . | . . . Traps Extracted . | . . . Installed . | . . . Triggered . | . . . Machines | -11 -10 -9 ---------- Run | Yrd Mat Mat Machines Disabled 11 | . 6 5 Max in Single Turn 6 | . 6 2 Machines Repaired . | . . . Machines Dismantled . | . . . Machines Sabotaged . | . . . Overloaded Fab Kills . | . . . Hacking | -11 -10 -9 --------- Run | Yrd Mat Mat Machines Accessed 6 | . 4 2 Terminals 4 | . 3 1 Fabricators . | . . . Repair Stations . | . . . Recycling Units 1 | . 1 . Scanalyzers 1 | . . 1 Garrison Access . | . . . Total Hacks 17 | . 8 9 Successful 12 | . 5 7 Failed 4 | . 3 1 Catastrophic . | . . . Database Lockouts 1 | . . 1 Manual . | . . . Terminals 8 | . 7 1 Fabricators . | . . . Repair Stations . | . . . Recycling Units 1 | . 1 . Scanalyzers 8 | . . 8 Garrison Access . | . . . Terminal Hacks 5 | . 4 1 Record 3 | . 3 . Alert Level 1 | . 1 . Hauler Manifests 1 | . . 1 Fabricator Hacks . | . . . Repair Station Hacks . | . . . Recycling Unit Hacks 1 | . 1 . Report Inventory 1 | . 1 . Scanalyzer 6 | . . 6 Insert Component 1 | . . 1 Analyze 1 | . . 1 Retrieve Study 4 | . . 4 Garrison Access Hacks . | . . . Unauthorized Hacks . | . . . Terminals . | . . . Fabricators . | . . . Repair Stations . | . . . Recycling Units . | . . . Scanalyzers . | . . . Garrison Access . | . . . Data Cores Recovered . | . . . Used . | . . . Hacking Detections 4 | . 3 1 Full Trace Events . | . . . Feedback Events . | . . . Feedback Blocked . | . . . Robot Schematics Acquired . | . . . Robots Built . | . . . Authchips . | . . . Time . | . . . Total Robot Build Rating . | . . . Part Schematics Acquired 1 | . . 1 Parts Built . | . . . Authchips . | . . . Time . | . . . Total Part Build Rating . | . . . Part Studies Acquired 3 | . . 3 Parts Repaired . | . . . Time . | . . . Parts Recycled . | . . . Recycled Matter . | . . . Retrieved Matter . | . . . Retrieved Components . | . . . Parts Scanalyzed 1 | . . 1 Part Schematics Acquired 1 | . . 1 Parts Damaged . | . . . Bothacking | -11 -10 -9 ------------ Run | Yrd Mat Mat Used RIF Installer . | . . . Robots Hacked . | . . . Non-combat . | . . . Combat . | . . . Robot Hacks Applied . | . . . Relay Couplers Released . | . . . Fabnet Peak Effective % . | . . . Robots Rewired . | . . . Allies Hacked . | . . . Hacks Repelled . | . . . Allies | -11 -10 -9 -------- Run | Yrd Mat Mat Total Allies . | . . . Largest Group . | . . . Highest-Rated Group . | . . . Highest-Rated Ally . | . . . Total Orders . | . . . Ally Attacks . | . . . Total Damage . | . . . Kills . | . . . Allies Corrupted . | . . . Allies Melted . | . . . Intel | -11 -10 -9 ------- Run | Yrd Mat Mat Active Infowar (turns) 807 | 117 538 152 Optics 116 | . . 116 Terrain 152 | 117 35 . Seismic 682 | 108 538 36 Robot Analysis Total . | . . . Derelict Logs Recovered . | . . . Drone Launches . | . . . Drone Recoveries . | . . . Exploration | -11 -10 -9 ------------- Run | Yrd Mat Mat Turns Passed 955 | 224 538 193 Spaces Moved 814 | 135 381 298 Core 25 | 10 3 12 Treads . | . . . Legs 525 | 125 376 24 Wheels 10 | . . 10 Hover . | . . . Flight 254 | . 2 252 Fastest Speed 34 | 50 117 34 Average Speed 94 | 120 122 47 Slowest Speed 300 | 200 300 150 Overloaded Moves . | . . . Propulsion Burnouts . | . . . Robots Hopped . | . . . Potential Cave-ins . | . . . Cave-ins Triggered . | . . . Exploration Rate (%) 22 | 5 44 19 Regions Visited 2 Branch Regions . Pre-discovered Areas . | . . . Known Exits Taken . | . . . Unknown Exits Taken 2 | 1 1 . Scrap Searched . | . . . Spaces Dug . | . . . Terrain Destroyed 94 | . 64 30 Melee . | . . . Projectile . | . . . AOE 94 | . 64 30 Terrain Rammed . | . . . Walls Destroyed . | . . . Machines Disabled . | . . . Actions | -11 -10 -9 --------- Run | Yrd Mat Mat Total 916 | 162 422 332 Wait 4 | . . 4 Move 812 | 134 380 298 Hop . | . . . Pick Up 12 | 3 6 3 Fast Attach 17 | 7 5 5 Attach 8 | 1 1 6 Detach 4 | 1 1 2 Swap 3 | . 2 1 Drop 11 | . 7 4 Fire 43 | 16 18 9 Melee . | . . . Ram . | . . . Kick 2 | . 2 . Crush . | . . . Escape Stasis . | . . . Rewire . | . . . Trap . | . . . Miscellaneous . | . . . Route ------- -11/Scrapyard -10/Materials -9/Materials History --------- Turn | Location | Event 21 | -11/Scrapyard | Discovered new exit (range 16) 225 | -11/Scrapyard | Entered Materials 300 | -10/Materials | Build established: Mutant 725 | -10/Materials | Discovered new exit (range 16) 763 | -10/Materials | Entered another Materials area 763 | -9/Materials | Evolved 2 slots: Propulsion x1, Utility x1 830 | -9/Materials | Lost 3 parts (2n1u) 858 | -9/Materials | Central database locked down 956 | -9/Materials | Self-destructed Last Messages --------------- A-02 Transporter 1x Adv. Beam Cannon 5x Imp. Assault Rifle A-02 Transporter 4x Sml. Storage Unit 1x Particle Gun A-02 Transporter 6x Hcp. Matter Pod The unstable cave ceiling collapses. U-05 Engineer lays Concrete. U-05 Engineer builds a Wall. U-05 Engineer lays Concrete. Flight Unit+ destroyed. Shield Generator destroyed. Flight Unit+ destroyed. Wheel destroyed. Flight Unit+ destroyed. Triggered Explosive Trap. An explosion rips through the floor. T-07 Excavator destroyed. Map ----- +----------------------------------------------------+ | ??????????????????????????????????????????????? | | ??????????????????????????????????????????????? | | ??????????????????????????????????????????????? | | ??????????????????????????????????????????????? | | ??????????????????????????????????????????????? | | ??????????????????????????????????????????????? | | ??????????????????????????????????????????????? | | ??????????????????????????????????????????????? | | ??????????????????????????????????????????????? | | ??????????????????????????????????????????????? | | ????????????????????? ????????????????????????? | | ????????????????????#+????????????????????????? | | ???????????????????? ????????????????????????? | | ???????????????????? ????????????????????????? | | ???????????????????? ????????????????????????? | | ???????????????????? Y????????????????????????? | | ???????????????????? ????????????????????????? | | ????????????????????#u????????????????????????? | | ????????????????????# ????????????????????????? | | ??????????????????### ###?????????????????????? | | ??????????????????# #?????????????????????? | | ????????????????+## #?????????????????????? | | ????????????????? #?????????????????????? | | ??????????????????# #?????????????????????? | | ??????????????????# #?????????????????????? | | ???????????????????# @##?????????????????????? | | ???????##########?##* #?????????????????????? | | ???????# #?# %= #?????????????????????? | | ???????# """ #?##^ #?????????????????????? | | ???????# """ #??# #?????????????????????? | | ???????# """ #??# #?????????????????????? | | ???????# #??# ##?????????????????????? | | ???????# " #??# #??????????????????????? | | ???????# T #??# #??????????????????????? | | ???????# " #??# #??????????????????????? | | ???????# #??# ###????????????????????? | | ???????###+#+#######gg #????????????????????? | | ?????????# #????????????????????? | | ?????????# #????????????????????? | | ?????????# " #????????????????????? | | ??????######+####### r #????????????????????? | | ??????# ## ##????????????????????? | | ??????# """ """ ## #?????????????????????? | | ?????## """ ##Y #?????????????????????? | | ?????# "" ## #?????????????????????? | | ?????## [ ## ##????????????????????? | | ????#### =###### #????????????????????? | | ????# * ##??# #????????????????????? | | ????#"S #??# " #????????????????????? | | ????#""" #??# #????????????????????? | +----------------------------------------------------+ Best States ------------- Heat Dissipation 28 Energy Generation 11 Energy Capacity 250 Matter Stores 300 Matter Capacity 300 Sight Range 20 Terrain Scan Range 16 Terrain Scan Density 10 Evasion (%) 63 Item Schematics ----------------- Grenade Launcher | -9/Materials | Scanalyzed Robot Schematics ------------------ None Fabricated ------------ Nothing Repaired ---------- Nothing Studied --------- Flight Unit | -9/Materials | Hacked Lgt. Ion Engine | -9/Materials | Hacked Lgt. Assault Rifle | -9/Materials | Hacked Alien Tech Used ----------------- None Achievements -------------- None Challenges ------------ None Game ------ Seed PointyColdRedirector Manual? 0 Play Time 00:18:09 Cumulative 3.0 hours Start 2026.09.10 @ 20:46:34 End 2026.09.10 @ 21:02:20 Sessions 1 Manual Loads 0 Difficulty Rogue Special Mode None Game No. 4 Rogue 4 Adventurer 0 Explorer 0 Win Type - Total 0 Types 0/0/0/0/0/0/0/0/0/0 Lore% 2 Gallery% 5 Achievement% 6 Wizard Run 0 Options --------- Layout 1 ASCII 0 Keyboard 0 Movement Arrows Keybinds 0 Fullscreen 1 Font 24/Smallcaps Map View 50x35 Zoom Use 0% Tactical HUD 0 Map Filters NONE Filters NONE Steam 1 RUN: 0172bdde-7072-4221-999b-56d13dcb0191